[Event "ROU-ch Men 2018"]
[Site "Olanesti"]
[Date "2018.05.18"]
[Round "5"]
[White "Berechet, Stefan-Mario"]
[Black "Raducanu, Andrei-Augustin"]
[Result "0-1"]
[ECO "A10"]
[WhiteElo "1879"]
[BlackElo "2063"]
[Annotator "NA"]
[PlyCount "116"]
[EventDate "2018.??.??"]
[EventType "swiss"]
[EventCountry "ROU"]
[SourceTitle "playchess.com"]
[Source "ChessBase"]
[SourceQuality "1"]
[TimeControl "40/5400+30:1800+30"]

1. c4 {[%emt 0:00:00]} f5 {[%emt 0:00:06]} 2. Nc3 {[%emt 0:00:00]} Nf6 {[%emt 0:00:17]} 3. g3 {[%emt 0:00:04]} g6 {[%emt 0:02:12]} 4. Bg2 {[%emt 0:00:04]} Bg7 {[%emt 0:00:04]} 5. d3 {[%emt 0:00:05]} O-O {[%emt 0:00:31]} 6. e3 {[%emt 0:00:05]} d6 {[%emt 0:11:19]} 7. Nge2 {[%emt 0:00:12]} e5 {[%emt 0:01:23]} 8. b4 {[%emt 0:00:42]} c6 {[%emt 0:04:56]} 9. b5 {[%emt 0:03:09]} Be6 {[%emt 0:08:31]} 10. O-O {[%emt 0:06:05]} Re8 {[%emt 0:16:59]} 11. Rb1 {[%emt 0:18:13]} Qd7 {[%emt 0:09:15]} 12. Qa4 {[%emt 0:04:56]} d5 {[%emt 0:02:06]} 13. bxc6 {[%emt 0:01:57]} bxc6 {[%emt 0:10:36]} 14. Ba3 {[%emt 0:07:08]} dxc4 {[%emt 0:10:51]} 15. dxc4 {[%emt 0:00:09]} Qf7 {[%emt 0:00:07]} 16. Rb2 {[%emt 0:29:44]} Bxc4 {[%emt 0:00:36]} 17. Bxc6 {[%emt 0:00:11]} Nxc6 {[%emt 0:00:30]} 18. Qxc6 {[%emt 0:00:06]} Rac8 {[%emt 0:08:28]} 19. Qa4 {[%emt 0:03:00]} a6 {[%emt 0:00:04]} 20. Rfb1 {[%emt 0:01:53]} Bd3 {[%emt 0:02:13]} 21. Rb7 {[%emt 0:01:34]} Rc7 {[%emt 0:01:34]} 22. Rxc7 {[%emt 0:02:35]} Qxc7 {[%emt 0:00:02]} 23. Rc1 {[%emt 0:05:41]} Qb7 {[%emt 0:04:05]} 24. Rd1 {[%emt 0:02:00]} Bxe2 {[%emt 0:02:44]} 25. Nxe2 {[%emt 0:00:05]} Qf3 {[%emt 0:00:04]} 26. Nc3 {[%emt 0:01:51]} Rb8 {[%emt 0:01:58]} 27. Bd6 {[%emt 0:04:16]} Rc8 {[%emt 0:01:27]} 28. Qb3+ {[%emt 0:02:18]} Kh8 {[%emt 0:00:11]} 29. Bxe5 {[%emt 0:05:35]} Ng4 {[%emt 0:00:02]} 30. Bxg7+ {[%emt 0:00:01]} Kxg7 {[%emt 0:00:03]} 31. Rf1 {[%emt 0:00:21]} Nxe3 {[%emt 0:02:01]} 32. fxe3 {[%emt 0:00:42]} Qxe3+ {[%emt 0:00:02]} 33. Kh1 {[%emt 0:01:08]} Rxc3 {[%emt 0:00:24]} 34. Qb7+ {[%emt 0:00:27]} Kh6 {[%emt 0:00:03]} 35. Qg2 {[%emt 0:00:42]} Rc1 {[%emt 0:01:08]} 36. Qh3+ {[%emt 0:00:19]} Kg7 {[%emt 0:00:04]} 37. Qg2 {[%emt 0:00:33]} a5 {[%emt 0:01:02]} 38. Qb7+ {[%emt 0:00:08]} Kh6 {[%emt 0:00:03]} 39. Rxc1 {[%emt 0:00:54]} Qxc1+ {[%emt 0:00:03]} 40. Kg2 {[%emt 0:00:00]} Qd2+ {[%emt 0:00:23]} 41. Kf3 {[%emt 0:03:27]} Qxa2 {[%emt 0:12:18]} 42. Qe7 {[%emt 0:00:31]} Qxh2 {[%emt 0:02:27]} 43. Qe3+ {[%emt 0:01:10]} Kh5 {[%emt 0:00:30]} 44. Qe1 {[%emt 0:00:37]} Qh3 {[%emt 0:06:36]} 45. Qxa5 {[%emt 0:00:25]} Qf1+ {[%emt 0:00:14]} 46. Ke3 {[%emt 0:00:21]} Qg2 {[%emt 0:00:20]} 47. Qc7 {[%emt 0:00:34]} Qe4+ {[%emt 0:00:48]} 48. Kf2 {[%emt 0:00:06]} Kg4 {[%emt 0:01:29]} 49. Qc3 {[%emt 0:01:01]} Kh3 {[%emt 0:03:16]} 50. g4+ {[%emt 0:03:48]} Kxg4 {[%emt 0:00:01]} 51. Qg3+ {[%emt 0:00:07]} Kh5 52. Qc7 {[%emt 0:00:23]} h6 {[%emt 0:01:10]} 53. Qf7 {[%emt 0:00:29]} f4 {[%emt 0:02:41]} 54. Qd7 {[%emt 0:00:27]} Qe3+ {[%emt 0:00:21]} 55. Kg2 {[%emt 0:00:10]} Qg3+ {[%emt 0:00:35]} 56. Kh1 {[%emt 0:00:05]} Qh4+ {[%emt 0:00:05]} 57. Kg2 {[%emt 0:00:09]} Qg4+ {[%emt 0:00:02]} 58. Qxg4+ {[%emt 0:00:04]} Kxg4 {[%emt 0:00:06]} 0-1

[Event "ROU-ch Men 2018"]
[Site "Olanesti"]
[Date "2018.05.18"]
[Round "5"]
[White "Toma, Mihail"]
[Black "Vasiesiu, Victor"]
[Result "0-1"]
[ECO "A46"]
[WhiteElo "1835"]
[BlackElo "2327"]
[Annotator "NA"]
[PlyCount "66"]
[EventDate "2018.??.??"]
[EventType "swiss"]
[EventCountry "ROU"]
[SourceTitle "playchess.com"]
[Source "ChessBase"]
[SourceQuality "1"]
[TimeControl "40/5400+30:1800+30"]

1. d4 {[%emt 0:00:27]} Nf6 {[%emt 0:00:06]} 2. Nf3 {[%emt 0:00:08]} c5 {[%emt 0:00:04]} 3. c3 {[%emt 0:00:11]} g6 {[%emt 0:01:27]} 4. Bg5 {[%emt 0:00:09]} Bg7 {[%emt 0:00:08]} 5. e3 {[%emt 0:00:04]} O-O {[%emt 0:01:28]} 6. Nbd2 {[%emt 0:00:10]} d6 {[%emt 0:00:09]} 7. Bd3 {[%emt 0:01:43]} Nbd7 {[%emt 0:01:07] A48: 1 d4 Nf6 2 Nf3 g6: Torre, London and Colle Systems} (7... b6 8. O-O Bb7 9. Re1 Nc6 10. h3 Rc8 11. Qe2 Rc7 12. a3 Qc8 13. e4 cxd4 14. cxd4 Nd7 15. e5 dxe5 {½-½ (58) Kramnik,V (2811)-Nepomniachtchi,I (2751) Zuerich 2017}) 8. O-O {[%emt 0:00:06]} h6 {[%emt 0:00:33]} 9. Bh4 {[%emt 0:00:10]} g5 {[%emt 0:00:52]} 10. Bg3 {[%emt 0:00:07]} Nh5 {[%emt 0:00:10]} 11. Ne1 $146 {[%emt 0:03:50]} ({Predecessor:} 11. Ne4 d5 12. Nexg5 hxg5 13. Nxg5 Nxg3 14. fxg3 Nf6 15. Rxf6 exf6 16. Qh5 Re8 17. Bh7+ {1-0 (17) Bouza Brey Teijeiro,G (1904)-Mougan Gonzalez,S (1730) Cambados 2008}) 11... Nxg3 {[%emt 0:00:08]} 12. hxg3 {[%emt 0:00:14]} cxd4 {[%emt 0:04:21]} 13. exd4 {[%emt 0:00:45]} e5 {[%emt 0:04:14]} 14. d5 {[%emt 0:03:25]} (14. Nc2 $11) 14... f5 {[%emt 0:00:30]} 15. Rc1 {[%emt 0:07:00]} e4 {[%emt 0:03:52]} 16. Bb1 {[%emt 0:01:01]} Ne5 {[%emt 0:00:07]} 17. Nb3 {[%emt 0:09:25]} Qe8 {[%emt 0:01:54]} 18. Nd4 {[%emt 0:00:55] [#]} (18. f3 $17 {ist eine bessere Verteidigung.}) 18... Ng4 $1 {[%emt 0:00:18]} 19. f3 {[%emt 0:02:59]} Ne3 {[%emt 0:00:12]} 20. Qe2 {[%emt 0:02:25]} Nxf1 {[%emt 0:00:15]} 21. Qxf1 $19 {[%emt 0:00:56]} Bxd4+ {[%emt 0:02:23]} 22. cxd4 {[%emt 0:00:07]} Bd7 {[%emt 0:00:09]} 23. Rc3 {[%emt 0:03:41]} Rc8 {[%emt 0:01:30]} 24. Nc2 {[%emt 0:00:33]} b5 {[%emt 0:01:52]} 25. Nb4 {[%emt 0:00:52]} a5 {[%emt 0:00:13]} 26. Nc6 {[%emt 0:00:25]} Bxc6 {[%emt 0:00:22]} 27. dxc6 {[%emt 0:00:13]} Rxc6 {[%emt 0:00:07]} 28. fxe4 {[%emt 0:00:30]} fxe4 {[%emt 0:00:53]} 29. Qe2 {[%emt 0:00:35]} Rxc3 {[%emt 0:00:09]} 30. bxc3 d5 31. g4 {[%emt 0:02:05]} Qc6 {[%emt 0:00:59]} 32. Kh2 {[%emt 0:01:01]} Qc4 {[%emt 0:00:25]} 33. Qe3 {[%emt 0:00:51]} Qf1 {[%emt 0:00:11]} 0-1

[Event "ROU-ch Men 2018"]
[Site "Olanesti"]
[Date "2018.05.18"]
[Round "5"]
[White "Morariu, Daniel"]
[Black "Coca, Cristi-Iulian"]
[Result "0-1"]
[ECO "B41"]
[WhiteElo "1656"]
[BlackElo "2003"]
[Annotator "NA"]
[PlyCount "54"]
[EventDate "2018.??.??"]
[EventType "swiss"]
[EventCountry "ROU"]
[SourceTitle "playchess.com"]
[Source "ChessBase"]
[SourceQuality "1"]
[TimeControl "40/5400+30:1800+30"]

1. e4 {[%emt 0:00:00]} c5 {[%emt 0:00:04]} 2. Nf3 {[%emt 0:00:00]} e6 {[%emt 0:00:04]} 3. d4 {[%emt 0:00:08]} cxd4 {[%emt 0:00:04]} 4. Nxd4 {[%emt 0:00:05]} a6 {[%emt 0:00:04]} 5. c4 {[%emt 0:00:25]} Nf6 {[%emt 0:00:06]} 6. Nc3 {[%emt 0:01:00]} Qc7 {[%emt 0:00:05]} 7. a3 {[%emt 0:00:31]} d6 {[%emt 0:00:15]} 8. Be2 {[%emt 0:01:17]} Nbd7 {[%emt 0:00:18]} 9. Be3 {[%emt 0:00:48]} b6 {[%emt 0:00:06]} 10. O-O {[%emt 0:00:39]} Bb7 {[%emt 0:00:15]} 11. f3 {[%emt 0:00:39]} Be7 {[%emt 0:00:07]} 12. Qe1 {[%emt 0:00:58]} O-O {[%emt 0:01:17]} 13. Qg3 {[%emt 0:03:08]} Rfe8 {[%emt 0:00:11]} 14. Rac1 {[%emt 0:03:06]} Rac8 {[%emt 0:00:26]} 15. Qh3 {[%emt 0:10:14]} h5 {[%emt 0:04:21]} 16. f4 {[%emt 0:08:13]} Nc5 {[%emt 0:04:20]} 17. Bxh5 {[%emt 0:26:48]} Nxh5 {[%emt 0:00:48]} 18. Qxh5 {[%emt 0:00:09]} Nxe4 {[%emt 0:00:19]} 19. f5 {[%emt 0:06:04]} e5 {[%emt 0:09:00]} 20. Ne6 {[%emt 0:07:36]} fxe6 {[%emt 0:01:46]} 21. fxe6 {[%emt 0:00:14]} Rf8 {[%emt 0:19:42]} 22. Rf7 {[%emt 0:09:07]} Nf6 {[%emt 0:00:58]} 23. Rxg7+ {[%emt 0:04:29]} Kxg7 {[%emt 0:00:16]} 24. Bh6+ {[%emt 0:00:25]} Kh8 {[%emt 0:02:46]} 25. Qh4 {[%emt 0:11:44]} Nh7 {[%emt 0:03:45]} 26. Qh5 Qc5+ {[%emt 0:02:09]} 27. Kh1 {[%emt 0:01:52]} Qf2 {[%emt 0:01:02]} 0-1

[Event "ROU-ch Men 2018"]
[Site "Olanesti"]
[Date "2018.05.19"]
[Round "6"]
[White "Secheres, Adrian-Simion"]
[Black "Pop, Alexandru"]
[Result "1-0"]
[ECO "B78"]
[WhiteElo "2404"]
[BlackElo "2302"]
[Annotator "ChessBase"]
[PlyCount "133"]
[EventDate "2018.??.??"]
[EventType "swiss"]
[EventCountry "ROU"]
[SourceTitle "playchess.com"]
[Source "ChessBase"]
[SourceQuality "1"]
[TimeControl "40/5400+30:1800+30"]

1. e4 {[%emt 0:00:00]} c5 {[%emt 0:03:19]} 2. Nf3 {[%emt 0:00:00]} d6 {[%emt 0:00:04]} 3. d4 {[%emt 0:00:20]} cxd4 {[%emt 0:00:06]} 4. Nxd4 {[%emt 0:00:05]} Nf6 {[%emt 0:00:05]} 5. Nc3 {[%emt 0:00:10]} g6 {[%emt 0:00:05]} 6. Be3 {[%emt 0:00:17]} Bg7 {[%emt 0:00:04]} 7. f3 {[%emt 0:00:15]} O-O {[%emt 0:00:06]} 8. Qd2 {[%emt 0:00:30]} Nc6 {[%emt 0:00:05]} 9. Bc4 {[%emt 0:00:20]} Bd7 {[%emt 0:00:06]} 10. O-O-O {[%emt 0:00:21]} Rc8 {[%emt 0:00:02]} 11. Bb3 {[%emt 0:00:22]} Nxd4 {[%emt 0:00:06]} 12. Bxd4 {[%emt 0:00:19]} b5 {[%emt 0:00:04]} 13. Nd5 {[%emt 0:00:40]} Nxd5 {[%emt 0:00:22]} 14. Bxg7 {[%emt 0:00:21]} Kxg7 {[%emt 0:00:09]} 15. exd5 {[%emt 0:00:16]} a5 {[%emt 0:00:37]} 16. a3 {[%emt 0:00:30]} Kg8 {[%emt 0:00:23]} 17. h4 {[%emt 0:01:10]} b4 {[%emt 0:04:37]} 18. axb4 {[%emt 0:00:08]} axb4 {[%emt 0:00:03]} 19. h5 {[%emt 0:01:20]} Qa5 {[%emt 0:01:57]} 20. Qd4 {[%emt 0:01:38]} Bf5 {[%emt 0:01:17]} 21. hxg6 {[%emt 0:07:15]} fxg6 {[%emt 0:49:04]} 22. Kd2 {[%emt 0:02:27]} Rc5 {[%emt 0:01:20]} 23. Qh4 {[%emt 0:07:41]} Rf7 {[%emt 0:00:07]} 24. Ra1 {[%emt 0:00:35]} Qb6 {[%emt 0:01:10]} 25. Ra4 {[%emt 0:02:49]} Ra5 {[%emt 0:10:03]} 26. Rxb4 {[%emt 0:03:18]} Qa7 {[%emt 0:02:13]} 27. Qd4 {[%emt 0:02:11]} Qa8 {[%emt 0:00:07]} 28. Qb6 {[%emt 0:12:26]} Rf8 {[%emt 0:07:49]} 29. Qb7 {[%emt 0:05:11]} Qd8 {[%emt 0:00:40]} 30. Re1 {[%emt 0:01:07]} Re8 {[%emt 0:02:26]} 31. Qb6 {[%emt 0:22:22]} Qa8 {[%emt 0:01:22]} 32. Qb7 {[%emt 0:02:52]} Qd8 {[%emt 0:00:34]} 33. Re3 {[%emt 0:00:05]} Bd7 {[%emt 0:02:51]} 34. c3 {[%emt 0:04:24]} Bf5 {[%emt 0:02:59]} 35. Ba4 {[%emt 0:09:50]} Bc8 {[%emt 0:00:16]} 36. Qb8 {[%emt 0:00:04]} Rf8 {[%emt 0:01:56]} 37. Bc6 {[%emt 0:00:59]} Ra1 {[%emt 0:01:36]} 38. Qb6 {[%emt 0:01:37]} Rg1 {[%emt 0:00:51]} 39. Re2 {[%emt 0:00:22]} Qxb6 {[%emt 0:00:28]} 40. Rxb6 {[%emt 0:00:00]} h5 {[%emt 0:00:04]} 41. Rb4 {[%emt 0:01:58]} g5 {[%emt 0:00:15]} 42. Rbe4 {[%emt 0:02:01]} g4 {[%emt 0:00:33]} 43. b4 {[%emt 0:04:11]} gxf3 {[%emt 0:06:11]} 44. gxf3 {[%emt 0:00:06]} Rxf3 {[%emt 0:00:06]} 45. b5 {[%emt 0:12:45]} Bf5 {[%emt 0:03:56]} 46. R4e3 {[%emt 0:00:24]} Rff1 {[%emt 0:00:08]} 47. Re1 {[%emt 0:00:17]} h4 {[%emt 0:03:27]} 48. b6 {[%emt 0:06:09]} Rxe1 {[%emt 0:15:36]} 49. Rxe1 {[%emt 0:00:48]} Rg2+ {[%emt 0:00:06]} 50. Ke3 {[%emt 0:01:41]} Rb2 {[%emt 0:02:34]} 51. b7 {[%emt 0:00:45]} h3 {[%emt 0:00:24]} 52. Rf1 {[%emt 0:04:38]} Bg6 {[%emt 0:05:57]} 53. c4 {[%emt 0:02:34]} Rb6 {[%emt 0:00:54]} 54. Kf4 {[%emt 0:03:12]} Bd3 {[%emt 0:01:03]} 55. Ra1 {[%emt 0:01:44]} Kg7 {[%emt 0:00:52]} 56. Kg3 {[%emt 0:03:20]} Bf5 {[%emt 0:00:38]} 57. Rf1 {[%emt 0:01:06]} Kg6 {[%emt 0:01:38]} 58. Kh4 {[%emt 0:00:47]} Rb3 {[%emt 0:02:04]} 59. Rf2 {[%emt 0:00:44]} Rb6 {[%emt 0:01:11]} 60. Be8+ {[%emt 0:00:31]} Kf6 {[%emt 0:00:42]} 61. Bd7 {[%emt 0:00:31]} Rxb7 {[%emt 0:00:33]} 62. Rxf5+ {[%emt 0:01:02]} Kg6 {[%emt 0:00:04]} 63. Rg5+ {[%emt 0:00:04]} Kf6 {[%emt 0:00:20]} 64. Bxh3 {[%emt 0:00:03]} e5 {[%emt 0:00:19]} 65. dxe6 {[%emt 0:00:43]} Rb4 {[%emt 0:00:16]} 66. Rf5+ {[%emt 0:00:05]} Kg6 {[%emt 0:00:05]} 67. Rf4 {[%emt 0:00:10]} 1-0

[Event "ROU-ch Men 2018"]
[Site "Olanesti"]
[Date "2018.05.19"]
[Round "6"]
[White "Dobre, Claudiu-Cristian"]
[Black "Coca, Cristi-Iulian"]
[Result "1/2-1/2"]
[ECO "A01"]
[WhiteElo "2393"]
[BlackElo "2003"]
[Annotator "NA"]
[PlyCount "40"]
[EventDate "2018.??.??"]
[EventType "swiss"]
[EventCountry "ROU"]
[SourceTitle "playchess.com"]
[Source "ChessBase"]
[SourceQuality "1"]
[TimeControl "40/5400+30:1800+30"]

1. b3 {[%emt 0:00:00]} e5 {[%emt 0:01:01]} 2. Bb2 {[%emt 0:00:00]} Nc6 {[%emt 0:00:05]} 3. e3 {[%emt 0:00:00]} Nf6 {[%emt 0:02:48]} 4. Nf3 {[%emt 0:00:00]} e4 {[%emt 0:01:14]} 5. Nd4 {[%emt 0:00:00]} d5 {[%emt 0:01:36]} 6. Nxc6 {[%emt 0:08:14]} bxc6 {[%emt 0:00:07]} 7. c4 {[%emt 0:05:39]} Bd6 {[%emt 0:05:42]} 8. Be2 {[%emt 0:05:06]} O-O {[%emt 0:02:11]} 9. O-O {[%emt 0:30:28]} Be6 {[%emt 0:04:48]} 10. Nc3 {[%emt 0:00:57]} a6 {[%emt 0:03:05]} 11. cxd5 {[%emt 0:06:39]} cxd5 {[%emt 0:02:11]} 12. f3 {[%emt 0:05:22]} c5 {[%emt 0:08:23]} 13. fxe4 {[%emt 0:00:45]} d4 {[%emt 0:01:04]} 14. Nd5 {[%emt 0:02:06]} Nxd5 {[%emt 0:05:04]} 15. exd5 {[%emt 0:00:06]} Qh4 {[%emt 0:01:16]} 16. g3 {[%emt 0:09:53]} Bxg3 {[%emt 0:00:18]} 17. hxg3 {[%emt 0:00:04]} Qxg3+ {[%emt 0:00:07]} 18. Kh1 {[%emt 0:00:02]} Bxd5+ {[%emt 0:00:55]} 19. Bf3 {[%emt 0:00:18]} Qh3+ {[%emt 0:20:25]} 20. Kg1 {[%emt 0:00:04]} Qg3+ {[%emt 0:00:06]} 1/2-1/2

[Event "ROU-ch Men 2018"]
[Site "Olanesti"]
[Date "2018.05.19"]
[Round "6"]
[White "Stanciu, Alexandru-Ovidiu"]
[Black "Posedaru, Bogdan"]
[Result "1/2-1/2"]
[ECO "B34"]
[WhiteElo "2363"]
[BlackElo "2307"]
[Annotator "NA"]
[PlyCount "40"]
[EventDate "2018.??.??"]
[EventType "swiss"]
[EventCountry "ROU"]
[SourceTitle "playchess.com"]
[Source "ChessBase"]
[SourceQuality "1"]
[TimeControl "40/5400+30:1800+30"]

1. e4 {[%emt 0:00:42]} c5 {[%emt 0:00:13]} 2. Nc3 {[%emt 0:01:23]} Nc6 {[%emt 0:00:26]} 3. Nge2 {[%emt 0:00:33]} g6 {[%emt 0:01:05]} 4. d4 {[%emt 0:00:19]} cxd4 {[%emt 0:00:06]} 5. Nxd4 {[%emt 0:00:03]} Bg7 {[%emt 0:00:07]} 6. Nb3 {[%emt 0:00:43]} Nf6 {[%emt 0:01:39]} 7. Be2 {[%emt 0:00:14]} O-O {[%emt 0:00:13]} 8. O-O {[%emt 0:00:05]} d6 {[%emt 0:01:03]} 9. Re1 {[%emt 0:09:09]} Be6 {[%emt 0:09:32]} 10. Bg5 {[%emt 0:01:49]} Rc8 {[%emt 0:04:30]} 11. Bf1 {[%emt 0:02:50]} Nd7 {[%emt 0:03:47]} 12. Rb1 {[%emt 0:02:42]} Bxc3 {[%emt 0:12:11]} 13. bxc3 {[%emt 0:00:32]} Nb6 {[%emt 0:02:35]} 14. Re3 {[%emt 0:19:07]} Ne5 {[%emt 0:07:56]} 15. f4 {[%emt 0:02:47]} Ng4 {[%emt 0:12:49]} 16. Rg3 {[%emt 0:01:28]} Nf6 {[%emt 0:01:32]} 17. Bxf6 {[%emt 0:25:02]} exf6 {[%emt 0:00:14]} 18. f5 {[%emt 0:00:02]} Bxb3 {[%emt 0:02:12]} 19. axb3 {[%emt 0:01:32]} Re8 {[%emt 0:00:47]} 20. Qd4 {[%emt 0:04:11]} Re5 {[%emt 0:05:10]} 1/2-1/2

[Event "ROU-ch Men 2018"]
[Site "Olanesti"]
[Date "2018.05.19"]
[Round "6"]
[White "Stoleriu, George"]
[Black "Iustin, Silviu"]
[Result "1-0"]
[ECO "A05"]
[WhiteElo "2333"]
[BlackElo "1962"]
[Annotator "NA"]
[PlyCount "109"]
[EventDate "2018.??.??"]
[EventType "swiss"]
[EventCountry "ROU"]
[SourceTitle "playchess.com"]
[Source "ChessBase"]
[SourceQuality "1"]
[TimeControl "40/5400+30:1800+30"]

1. Nf3 {[%emt 0:00:00]} Nf6 {[%emt 0:00:13]} 2. c4 {[%emt 0:00:00]} g6 {[%emt 0:00:07]} 3. b3 {[%emt 0:00:52]} Bg7 {[%emt 0:00:26]} 4. Bb2 {[%emt 0:00:04]} O-O {[%emt 0:00:05]} 5. g3 {[%emt 0:00:01]} d6 {[%emt 0:00:12]} 6. Bg2 {[%emt 0:00:12]} e5 {[%emt 0:00:17]} 7. O-O {[%emt 0:00:25]} Nbd7 {[%emt 0:02:26]} 8. d3 {[%emt 0:00:07]} Nh5 {[%emt 0:02:48]} 9. Nc3 {[%emt 0:01:55]} f5 {[%emt 0:03:08]} 10. Nd2 {[%emt 0:00:41]} Ndf6 {[%emt 0:05:32]} 11. Nd5 {[%emt 0:05:29]} c6 {[%emt 0:07:59]} 12. Nxf6+ {[%emt 0:00:07]} Nxf6 {[%emt 0:00:07]} 13. b4 {[%emt 0:01:02]} Qc7 {[%emt 0:03:20]} 14. Rc1 {[%emt 0:05:42]} Qe7 {[%emt 0:06:34]} 15. b5 {[%emt 0:00:57]} c5 {[%emt 0:03:52]} 16. a4 {[%emt 0:01:44]} Rb8 {[%emt 0:04:10]} 17. e3 {[%emt 0:06:10]} Be6 {[%emt 0:05:13]} 18. Qc2 {[%emt 0:02:07]} Rbd8 {[%emt 0:04:08]} 19. Rce1 {[%emt 0:00:55]} Qc7 {[%emt 0:03:35]} 20. f4 {[%emt 0:03:43]} Rde8 {[%emt 0:17:11]} 21. Nf3 {[%emt 0:02:09]} exf4 {[%emt 0:04:39]} 22. exf4 {[%emt 0:01:05]} h6 {[%emt 0:02:42]} 23. Re2 {[%emt 0:06:00]} Bf7 {[%emt 0:01:40]} 24. Rfe1 {[%emt 0:00:07]} Rxe2 {[%emt 0:01:10]} 25. Rxe2 {[%emt 0:00:08]} Re8 {[%emt 0:00:07]} 26. Rxe8+ {[%emt 0:00:21]} Bxe8 {[%emt 0:00:33]} 27. Qe2 {[%emt 0:01:47]} Bf7 {[%emt 0:00:23]} 28. Nd2 {[%emt 0:00:23]} b6 {[%emt 0:03:47]} 29. Nb3 {[%emt 0:00:57]} Kf8 {[%emt 0:00:48]} 30. Qf3 {[%emt 0:04:22]} Qe7 {[%emt 0:03:53]} 31. h3 {[%emt 0:10:05]} Ne8 {[%emt 0:01:26]} 32. Bxg7+ {[%emt 0:01:29]} Kxg7 {[%emt 0:00:11]} 33. Kf2 {[%emt 0:04:50]} Nf6 {[%emt 0:01:06]} 34. Qc6 {[%emt 0:12:32]} Qd7 {[%emt 0:04:47]} 35. a5 {[%emt 0:02:33]} Qd8 {[%emt 0:05:19]} 36. Qb7 {[%emt 0:09:01]} Qd7 {[%emt 0:00:24]} 37. a6 {[%emt 0:00:04]} Kf8 {[%emt 0:02:07]} 38. Bc6 {[%emt 0:00:08]} Qe7 {[%emt 0:00:18]} 39. Nd2 {[%emt 0:02:59]} Bg8 {[%emt 0:00:53]} 40. Qb8+ {[%emt 0:00:00]} Kg7 {[%emt 0:01:09]} 41. Nf1 {[%emt 0:07:47]} h5 {[%emt 0:02:11]} 42. Qb7 {[%emt 0:02:56]} Kf8 {[%emt 0:00:28]} 43. Ne3 {[%emt 0:05:20]} Be6 {[%emt 0:01:30]} 44. Ng2 {[%emt 0:03:21]} Bg8 {[%emt 0:05:27]} 45. Nh4 {[%emt 0:00:24]} Bf7 {[%emt 0:00:10]} 46. Nf3 {[%emt 0:00:19]} Ng8 {[%emt 0:03:28]} 47. Ng5 {[%emt 0:01:29]} Kg7 {[%emt 0:00:27]} 48. Nxf7 {[%emt 0:00:11]} Kxf7 {[%emt 0:07:35]} 49. Bd5+ {[%emt 0:00:13]} Kf8 {[%emt 0:00:06]} 50. Qb8+ {[%emt 0:00:15]} Qe8 {[%emt 0:00:20]} 51. Qxe8+ {[%emt 0:00:25]} Kxe8 {[%emt 0:00:03]} 52. Bxg8 {[%emt 0:00:07]} Ke7 {[%emt 0:00:03]} 53. g4 {[%emt 0:01:03]} h4 {[%emt 0:00:03]} 54. gxf5 {[%emt 0:00:19]} gxf5 {[%emt 0:00:05]} 55. Bh7 {[%emt 0:00:10]} 1-0

[Event "ROU-ch Men 2018"]
[Site "Olanesti"]
[Date "2018.05.19"]
[Round "6"]
[White "Vasiesiu, Victor"]
[Black "Horvat, Dan-Sebastian"]
[Result "1-0"]
[ECO "B76"]
[WhiteElo "2327"]
[BlackElo "2152"]
[Annotator "NA"]
[PlyCount "59"]
[EventDate "2018.??.??"]
[EventType "swiss"]
[EventCountry "ROU"]
[SourceTitle "playchess.com"]
[Source "ChessBase"]
[SourceQuality "1"]
[TimeControl "40/5400+30:1800+30"]

1. e4 {[%emt 0:00:00]} c5 {[%emt 0:01:34]} 2. Nf3 {[%emt 0:00:11]} d6 {[%emt 0:00:21]} 3. d4 {[%emt 0:00:05]} cxd4 {[%emt 0:00:05]} 4. Nxd4 {[%emt 0:00:03]} Nf6 {[%emt 0:00:13]} 5. Nc3 {[%emt 0:00:06]} g6 {[%emt 0:00:35]} 6. Be3 {[%emt 0:00:06]} Bg7 {[%emt 0:00:12]} 7. f3 {[%emt 0:00:07]} O-O {[%emt 0:00:15]} 8. Qd2 {[%emt 0:00:06]} Nc6 {[%emt 0:00:13]} 9. O-O-O {[%emt 0:00:35]} Be6 {[%emt 0:19:50]} 10. Nxe6 {[%emt 0:06:44]} fxe6 {[%emt 0:01:14]} 11. Bc4 {[%emt 0:00:04]} Qc8 {[%emt 0:01:37]} 12. Bb3 {[%emt 0:00:45]} Na5 {[%emt 0:04:16]} 13. h4 {[%emt 0:11:50]} Nc4 {[%emt 0:01:26]} 14. Qd3 {[%emt 0:03:24]} Nxe3 {[%emt 0:03:15]} 15. Qxe3 {[%emt 0:00:06]} Nh5 {[%emt 0:00:30]} 16. Ne2 {[%emt 0:02:20]} Be5 {[%emt 0:15:45]} 17. Kb1 {[%emt 0:00:10]} Kh8 {[%emt 0:04:39]} 18. g3 {[%emt 0:18:23]} Bxg3 {[%emt 0:04:29]} 19. Nxg3 {[%emt 0:03:30]} Nxg3 {[%emt 0:00:07]} 20. Rhg1 {[%emt 0:00:18]} Nh5 {[%emt 0:00:48]} 21. Rxg6 {[%emt 0:00:20]} Nf4 {[%emt 0:05:48]} 22. Rg4 {[%emt 0:10:21]} e5 {[%emt 0:02:01]} 23. Rdg1 {[%emt 0:00:32]} e6 {[%emt 0:02:25]} 24. Rg7 {[%emt 0:05:52]} b6 {[%emt 0:01:13]} 25. Qd2 {[%emt 0:02:29]} Qd8 {[%emt 0:20:00]} 26. Bxe6 {[%emt 0:01:19]} Qxh4 {[%emt 0:00:25]} 27. Qxd6 {[%emt 0:02:55]} Nxe6 {[%emt 0:01:38]} 28. Qxe6 {[%emt 0:01:43]} Rae8 {[%emt 0:00:10]} 29. Rf7 {[%emt 0:03:23]} h6 {[%emt 0:05:18]} 30. Rh7+ {[%emt 0:00:14]} 1-0

[Event "ROU-ch Men 2018"]
[Site "Olanesti"]
[Date "2018.05.19"]
[Round "6"]
[White "Banzea, Alexandru-Bogdan"]
[Black "Vasilescu, Lucian-Mihail"]
[Result "1-0"]
[ECO "B48"]
[WhiteElo "2325"]
[BlackElo "2243"]
[Annotator "NA"]
[PlyCount "71"]
[EventDate "2018.??.??"]
[EventType "swiss"]
[EventCountry "ROU"]
[SourceTitle "playchess.com"]
[Source "ChessBase"]
[SourceQuality "1"]
[TimeControl "40/5400+30:1800+30"]

1. e4 {[%emt 0:00:00]} c5 {[%emt 0:00:04]} 2. Nf3 {[%emt 0:00:00]} Nc6 {[%emt 0:00:04]} 3. Nc3 {[%emt 0:00:29]} e6 {[%emt 0:00:12]} 4. d4 {[%emt 0:00:14]} cxd4 {[%emt 0:00:05]} 5. Nxd4 {[%emt 0:00:03]} Qc7 {[%emt 0:00:07]} 6. Be3 {[%emt 0:00:25]} a6 {[%emt 0:02:43]} 7. a3 {[%emt 0:00:34]} b5 {[%emt 0:01:01]} 8. Nxc6 {[%emt 0:00:15]} Qxc6 {[%emt 0:00:22]} 9. Be2 {[%emt 0:01:23]} Bb7 {[%emt 0:00:26]} 10. O-O {[%emt 0:00:55]} Bc5 {[%emt 0:09:54]} 11. Qd2 {[%emt 0:02:40]} d6 {[%emt 0:17:58]} 12. Rad1 {[%emt 0:05:15]} Rd8 {[%emt 0:00:26]} 13. Bg5 {[%emt 0:14:00]} f6 {[%emt 0:12:43]} 14. Be3 {[%emt 0:04:38]} Ne7 {[%emt 0:00:34]} 15. Bg4 {[%emt 0:03:37]} Kf7 {[%emt 0:10:41]} 16. Rfe1 {[%emt 0:06:55]} Ng6 {[%emt 0:02:03]} 17. Bh5 {[%emt 0:02:20]} Rhe8 {[%emt 0:04:06]} 18. f4 {[%emt 0:03:00]} Kg8 {[%emt 0:00:17]} 19. Kh1 {[%emt 0:03:56]} Re7 {[%emt 0:06:57]} 20. Qf2 {[%emt 0:03:42]} Rc7 {[%emt 0:01:23]} 21. Qg3 {[%emt 0:04:15]} Bxe3 {[%emt 0:06:21]} 22. Rxe3 {[%emt 0:01:39]} Qc5 {[%emt 0:00:11]} 23. Bxg6 {[%emt 0:04:26]} hxg6 {[%emt 0:00:01]} 24. Red3 {[%emt 0:04:32]} Kf7 {[%emt 0:01:31]} 25. e5 {[%emt 0:02:54]} d5 {[%emt 0:00:39]} 26. Ne4 {[%emt 0:01:35]} Qxc2 {[%emt 0:02:29]} 27. Nd6+ {[%emt 0:01:09]} Rxd6 {[%emt 0:00:02]} 28. exd6 {[%emt 0:00:08]} Rd7 {[%emt 0:00:02]} 29. Re1 {[%emt 0:01:11]} Qc6 {[%emt 0:00:29]} 30. Qg4 {[%emt 0:01:39]} Rxd6 {[%emt 0:01:27]} 31. Rg3 {[%emt 0:00:27]} Qc2 {[%emt 0:07:33]} 32. Rc3 {[%emt 0:01:21]} Qf2 {[%emt 0:00:23]} 33. Rc7+ {[%emt 0:02:00]} Kf8 {[%emt 0:00:02]} 34. Rec1 {[%emt 0:01:13]} Rc6 {[%emt 0:01:36]} 35. R7xc6 {[%emt 0:00:23]} Bxc6 {[%emt 0:00:19]} 36. Qxe6 {[%emt 0:00:09]} 1-0